Cogmind - Beta 13 @@@ ROGUE MODE // 2024.04.03 @ 23:22:38 Player: Westakvia Result: Destroyed by as-98858 with Assembled Blade Performance ------------- Evolutions (0) 0 Regions Visited (2) 400 Robots Destroyed (23) 115 Value Destroyed (611) 611 Prototype IDs (2) 40 Alien Tech Used (0) 0 Bonus (0) 0 TOTAL SCORE: 1166 Bonus ------- None Cogmind --------- Core Integrity 0/250 Matter 300/300 Energy 100/100 System Corruption 0% Temperature Cool (0) Movement Core (400) Ox7 Location -10/Mines Parts ------- > --- POWER (1) -------- (None) > --- PROPULSION (2) --- (None) > --- UTILITY (2) ------ Large Storage Unit Signal Interpreter > --- WEAPON (2) ------- Mining Claw > --- INVENTORY (15) --- Ion Engine Flight Unit Flight Unit Heat Sink Improved Heat Sink Large Storage Unit Visual Processing Unit Light Armor Plating Hacking Suite Small Laser Particle Gun Assault Rifle Heavy Assault Rifle Peak State ------------ > --- POWER ------------ Light Nuclear Core > --- PROPULSION ------- Aluminum Leg Aluminum Leg > --- UTILITY ---------- Large Storage Unit Signal Interpreter > --- WEAPON ----------- Heavy Assault Rifle Heavy Assault Rifle > --- INVENTORY -------- Ion Engine Flight Unit Flight Unit Heat Sink Improved Heat Sink Large Storage Unit Visual Processing Unit Light Armor Plating Hacking Suite Small Laser Particle Gun Assault Rifle Datajack Mining Claw [Rating: 13] Favorites ----------- Power Light Nuclear Core Engine Ion Engine Power Core Light Nuclear Core Propulsion Aluminum Leg Leg Aluminum Leg Hover Unit Hover Unit Flight Unit Flight Unit Utility Signal Interpreter Device Sensor Array Storage Large Storage Unit Processor Signal Interpreter Weapon Assault Rifle Energy Gun Particle Gun Ballistic Gun Assault Rifle Special Weapon Mining Laser Slashing Weapon Mining Claw Special Melee Weapon Datajack Build | -11 -10 -10 ------- Run | Yrd Mat Min Slots Evolved . | . . . Power . | . . . Propulsion . | . . . Utility . | . . . Weapon . | . . . Parts Attached 36 | 5 27 4 Power 3 | 1 2 . Engine 2 | 1 1 . Core 1 | . 1 . Reactor . | . . . Propulsion 12 | 2 10 . Treads . | . . . Leg 9 | 2 7 . Wheel . | . . . Hover 1 | . 1 . Flight 2 | . 2 . Utility 5 | . 5 . Device 2 | . 2 . Storage 2 | . 2 . Processor 1 | . 1 . Hackware . | . . . Protection . | . . . Artifact . | . . . Weapon 16 | 2 10 4 Energy Gun 2 | 1 1 . Energy Cannon . | . . . Ballistic Gun 6 | 1 3 2 Ballistic Cannon . | . . . Launcher . | . . . Special Weapon 1 | . 1 . Impact Weapon . | . . . Slashing Weapon 5 | . 4 1 Piercing Weapon . | . . . Special Melee Weapon 2 | . 1 1 Unidentified Prototypes . | . . . Parts Lost 9 | . 4 5 Power 2 | . 1 1 Propulsion 3 | . 1 2 Utility 1 | . 1 . Weapon 3 | . 1 2 Highest Loss Streak 5 | . 3 5 To Critical Strikes . | . . . Average Slot Usage (%) 96 | . 97 92 Engine 8 | . 9 . Core 5 | . 4 11 Leg 25 | . 25 25 Hover 1 | . 1 . Device 1 | . 1 . Storage 12 | . 12 14 Processor 12 | . 12 14 Energy Gun 4 | . 5 1 Ballistic Gun 12 | . 10 20 Special Weapon 1 | . 1 . Slashing Weapon 7 | . 8 1 Special Melee Weapon 2 | . 2 1 Naked Turns . | . . . Heaviest Build 31 | 6 30 31 Greatest Support 20 | 20 20 20 Greatest Overweight (x) 7 | . 3 7 Average Overweight (x) . | . . 1 Largest Inventory Capacity 15 | 5 15 15 Average Capacity 13 | 5 13 15 Most Carried 15 | 3 15 15 Average Carried 8 | . 8 13 Final Capacity 15 | 5 15 15 Final Carried 15 | 1 15 13 Class Distribution -------------------- 62% | Mutant 37% | Scavenger-Mutant Dominant Class ---------------- Mutant | -10/Materials Scavenger-Mutant | -10/Mines Resources | -11 -10 -10 ----------- Run | Yrd Mat Min Matter Collected 662 | 253 288 121 Remotely . | . . . Salvage Created 741 | 34 420 287 Parts 53 | 2 38 13 Haulers Intercepted . | . . . Recyclers Shooed 1 | . . 1 Parts Field Recycled . | . . . Retrieved Matter . | . . . Parts Self-Destructed . | . . . Prevented . | . . . Kills | -11 -10 -10 ------- Run | Yrd Mat Min Combat Hostiles Destroyed 17 | 1 11 5 Melee 7 | . 4 3 Guns 8 | 1 5 2 Cannons 2 | . 2 . Classes Destroyed 6 | 1 4 1 Worker 2 | . 2 . Recycler 1 | . . 1 Operator 1 | . 1 . Watcher 2 | . 2 . Swarmer 3 | . 3 . Grunt 14 | 1 8 5 Best Kill Streak 3 | 1 3 3 Combat Bots Only 3 | 1 3 3 Max Kills in Single Turn 2 | 1 2 1 Gunslinging 1 | . 1 . Exploded . | . . . Melee 1 | . 1 1 Uniques/NPCs Destroyed . | . . . Combat | -11 -10 -10 -------- Run | Yrd Mat Min Hostile Shots Fired 127 | 3 73 51 Missed 23 | . 15 8 Damage Taken 1273 | 33 647 593 Core 278 | . 100 178 Absorbed by Shields . | . . . Core Remaining (%) 100 | 100 . . Volleys Fired 54 | 3 40 11 Largest 2 | 2 2 2 Hottest 100 | 60 100 46 Shots Fired 80 | 6 52 22 Gun 69 | 6 41 22 Cannon . | . . . Launcher . | . . . Special 11 | . 11 . Kinetic 54 | 3 29 22 Thermal 16 | . 16 . Explosive . | . . . Electromagnetic 10 | 3 7 . Robot Hit Streak 9 | 2 9 7 Robot Miss Streak 3 | 1 3 1 Penetration Max . | . . . Secondary Targets 1 | . 1 . Max Gunslinging Chain 1 | . 1 . Shots Hit Robots 61 | 3 40 18 Core Hits 33 | 1 22 10 Critical Kills . | . . . Critical Parts Destroyed 1 | . 1 . Critical Strikes 1 | . 1 . Destroy 1 | . 1 . Melee Attacks 15 | . 9 6 Impact . | . . . Slashing 15 | . 9 6 Piercing . | . . . Sneak Attacks . | . . . Combat Hostiles . | . . . Follow-up Attacks . | . . . Damage Inflicted 1053 | 34 688 331 Guns 618 | 34 356 228 Cannons . | . . . Explosions . | . . . Melee 234 | . 138 96 Ramming 7 | . . 7 Kinetic 465 | 19 218 228 Thermal 255 | . 255 . Explosive . | . . . Electromagnetic 92 | 15 77 . Impact . | . . . Slashing 234 | . 138 96 Piercing . | . . . Highest Corruption . | . . . Average Corruption . | . . . Corruption Purged . | . . . Corruption Blocked . | . . . Overload Shots . | . . . Overflow Damage 18 | . 18 . Projectiles 18 | . 18 . Explosions . | . . . Melee . | . . . Knockbacks . | . . . Impact . | . . . Kinetic . | . . . Secondary . | . . . Self-Inflicted Damage . | . . . Shots . | . . . Rammed . | . . . Targets Rammed 1 | . . 1 Kicked 1 | . . 1 Crushed . | . . . Highest Temperature 180 | 38 180 12 Average Temperature 39 | 22 44 6 Received Heat Transfer 650 | 18 351 281 Siege Activations . | . . . Robots Corrupted . | . . . Combat Hostiles . | . . . Parts Fried . | . . . Impact Corruptions . | . . . Robots Melted . | . . . Combat Hostiles . | . . . Parts Melted 1 | . 1 . Heat Transferred 548 | . 548 . Parts Sabotaged . | . . . Parts Stolen . | . . . Parts Stripped . | . . . Power Chain Reactions . | . . . Alert | -11 -10 -10 ------- Run | Yrd Mat Min Peak Influence 167 | 20 167 100 Initial 13 | . 13 . Average 53 | 2 59 30 Maximum Alert Level . | . . . Low Security (%) 100 | 100 100 100 Level 1 . | . . . Level 2 . | . . . Level 3 . | . . . Level 4 . | . . . Level 5 . | . . . High Security . | . . . Max Security . | . . . Squads Dispatched 2 | . 2 . Investigation 1 | . 1 . Extermination . | . . . Reinforcement 1 | . 1 . Assault . | . . . Garrison . | . . . Intercept . | . . . Searches Triggered . | . . . Construction Impeded . | . . . Haulers Reinforced . | . . . Active Scanning Responses . | . . . Cargo Convoy Interrupts . | . . . Stealth | -11 -10 -10 --------- Run | Yrd Mat Min Distress Signals 1 | . 1 . Communications Jammed . | . . . Distress Signals . | . . . Times Spotted 37 | 1 25 11 Peak Tracking Total 8 | 1 4 8 Tactical Retreats . | . . . Traps | -11 -10 -10 ------- Run | Yrd Mat Min Traps Triggered 1 | . 1 . Indirectly . | . . . Trap Hack Attempts . | . . . Triggered . | . . . Disarmed . | . . . Reprogrammed . | . . . Reused . | . . . Traps Extracted . | . . . Installed . | . . . Triggered . | . . . Machines | -11 -10 -10 ---------- Run | Yrd Mat Min Machines Disabled 1 | . . 1 Max in Single Turn 1 | . . 1 Machines Repaired . | . . . Machines Dismantled . | . . . Machines Sabotaged . | . . . Overloaded Fab Kills . | . . . Hacking | -11 -10 -10 --------- Run | Yrd Mat Min Machines Accessed 7 | . 7 . Terminals 7 | . 7 . Fabricators . | . . . Repair Stations . | . . . Recycling Units . | . . . Scanalyzers . | . . . Garrison Access . | . . . Total Hacks 34 | . 34 . Successful 22 | . 22 . Failed 12 | . 12 . Catastrophic 2 | . 2 . Database Lockouts . | . . . Manual . | . . . Terminals 34 | . 34 . Fabricators . | . . . Repair Stations . | . . . Recycling Units . | . . . Scanalyzers . | . . . Garrison Access . | . . . Terminal Hacks 22 | . 22 . Record 11 | . 11 . Robot Analysis 2 | . 2 . Prototype ID Bank 1 | . 1 . Emergency Access Points 1 | . 1 . Scanalyzer Index 1 | . 1 . Alert Level 1 | . 1 . Unreport Threat 1 | . 1 . Dispatch Records 1 | . 1 . Transport Status 1 | . 1 . Investigation Status 1 | . 1 . Recall Reinforcements 1 | . 1 . Fabricator Hacks . | . . . Repair Station Hacks . | . . . Recycling Unit Hacks . | . . . Scanalyzer . | . . . Garrison Access Hacks . | . . . Unauthorized Hacks . | . . . Terminals . | . . . Fabricators . | . . . Repair Stations . | . . . Recycling Units . | . . . Scanalyzers . | . . . Garrison Access . | . . . Data Cores Recovered 1 | . 1 . Used . | . . . Hacking Detections 6 | . 6 . Full Trace Events . | . . . Feedback Events . | . . . Feedback Blocked . | . . . Robot Schematics Acquired . | . . . Robots Built . | . . . Authchips . | . . . Time . | . . . Total Robot Build Rating . | . . . Part Schematics Acquired . | . . . Parts Built . | . . . Authchips . | . . . Time . | . . . Total Part Build Rating . | . . . Parts Repaired . | . . . Time . | . . . Parts Recycled . | . . . Recycled Matter . | . . . Retrieved Matter . | . . . Retrieved Components . | . . . Parts Scanalyzed . | . . . Part Schematics Acquired . | . . . Parts Damaged . | . . . Bothacking | -11 -10 -10 ------------ Run | Yrd Mat Min Used RIF Installer . | . . . Robots Hacked . | . . . Non-combat . | . . . Combat . | . . . Robot Hacks Applied . | . . . Relay Couplers Released . | . . . Fabnet Peak Effective % . | . . . Robots Rewired . | . . . Allies Hacked . | . . . Hacks Repelled . | . . . Allies | -11 -10 -10 -------- Run | Yrd Mat Min Total Allies . | . . . Largest Group . | . . . Highest-Rated Group . | . . . Highest-Rated Ally . | . . . Total Orders . | . . . Ally Attacks . | . . . Total Damage . | . . . Kills . | . . . Allies Corrupted . | . . . Allies Melted . | . . . Intel | -11 -10 -10 ------- Run | Yrd Mat Min Robot Analysis Total 2 | . 2 . Derelict Logs Recovered . | . . . Drone Launches . | . . . Drone Recoveries . | . . . Exploration | -11 -10 -10 ------------- Run | Yrd Mat Min Turns Passed 2242 | 91 1864 287 Spaces Moved 1030 | 70 853 107 Core 26 | 17 6 3 Treads . | . . . Legs 927 | 53 770 104 Wheels . | . . . Hover 68 | . 68 . Flight 9 | . 9 . Fastest Speed 50 | 50 70 190 Average Speed 174 | 103 176 199 Slowest Speed 400 | 120 277 400 Overloaded Moves . | . . . Propulsion Burnouts . | . . . Robots Hopped . | . . . Cave-ins Triggered . | . . . Exploration Rate (%) 42 | 7 96 23 Regions Visited 2 Branch Regions 1 Pre-discovered Areas . | . . . Known Exits Taken 1 | . 1 . Unknown Exits Taken 1 | 1 . . Scrap Searched . | . . . Spaces Dug . | . . . Terrain Destroyed . | . . . Melee . | . . . Projectile . | . . . AOE . | . . . Terrain Rammed . | . . . Walls Destroyed . | . . . Machines Disabled . | . . . Actions | -11 -10 -10 --------- Run | Yrd Mat Min Total 1344 | 83 1114 147 Wait 160 | . 145 15 Move 1028 | 69 852 107 Hop . | . . . Pick Up 37 | 6 30 1 Fast Attach 1 | . 1 . Attach 11 | 5 5 1 Detach . | . . . Swap 24 | . 21 3 Drop 13 | . 11 2 Fire 54 | 3 40 11 Melee 15 | . 9 6 Ram . | . . . Kick 1 | . . 1 Crush . | . . . Escape Stasis . | . . . Rewire . | . . . Trap . | . . . Miscellaneous . | . . . Route ------- -11/Scrapyard -10/Materials (discovered 5 exits: *Mat x3 / *Min x2) -10/Mines History --------- Turn | Location | Event 2 | -11/Scrapyard | Met Revision 17 67 | -11/Scrapyard | Discovered new exit (range 8) 92 | -11/Scrapyard | Entered Materials 319 | -10/Materials | Build established: Mutant 574 | -10/Materials | Lost 3 parts (1p1n1u) 664 | -10/Materials | Discovered new exit (range 8) 845 | -10/Materials | Discovered new exit (range 15) 960 | -10/Materials | Discovered new exit (range 16) 998 | -10/Materials | Identified exit to Mines 1502 | -10/Materials | Discovered new exit (range 8) 1645 | -10/Materials | Build established: Scavenger-Mutant 1722 | -10/Materials | Discovered new exit (range 16) 1784 | -10/Materials | Identified exit to Materials 1956 | -10/Materials | Entered Mines 2201 | -10/Mines | Core integrity fell below 50% 2224 | -10/Mines | Assembled infested the area 2229 | -10/Mines | Assisted by a Guerilla fighting off Assembled 2241 | -10/Mines | Core integrity fell below 20% 2243 | -10/Mines | Destroyed by as-98858 with Assembled Blade Last Messages --------------- Datajack destroyed. Aluminum Leg destroyed. G-34 Mercenary destroyed. Hvy. Assault Rifle destroyed. G-47 Trooper destroyed. G-34 Mercenary destroyed. K-01 Serf collects debris. ALERT: Infestation in the mines, dispatching Demolisher response squad. K-01 Serf collects debris. Acquired 24 matter. K-01 Serf collects debris. A derelict emerges from the shadows: "You need to get out of here! I've been tracking a group of Assembled to figure out where they're coming from, and they're closing on this area, come on!" K-01 Serf collects debris. Aluminum Leg destroyed. K-01 Serf collects debris. Map ----- +----------------------------------------------------+ | | | | | | | | | | | | | | | | | | | | | | | | | | | | | | | | | | | | | ???????????????????????????????????????????? | | ???????????????????????????????????????????? | | ????????????????#######????????????????????? | | ?????????######## ##??????????#####????? | | ????????? #?????????## ##???? | | ???????????? #?????????# ####? | | ???????????????# #??????????# [## | | ????????????????# @ ############ "" =! | | ????????????????## aa k t % "" # | | ?????????????????###a%############ """ ! # | | ???????????????????#aa#??????????# %=# | | ???????????????????#* #???????# = # | | ???????????????????##### #???????## # | | ?????????????????????????#????????## ## | | ???????????????????????????????????## | | ????????????????????????????????????## ## | | ?????????????????????????????????????# #? | | ????????????????????????????????????? #? | | ???????????????????????????????????? ##? | | ???????????????????????????????????? ##?? | | ???????????????????????????????????## #??? | | ????????????????????????????????????## #??? | | ?????????????????????????????????????# #??? | | ?????????????????????????????????????# #??? | | ?????????????????????????????????????# #??? | | ?????????????????????????????????????? ??? | | ?????????????????????????????????????? #???? | | ???????????????????????????????????????????? | | ???????????????????????????????????????????? | | ???????????????????????????????????????????? | | ???????????????????????????????????????????? | | ???????????????????????????????????????????? | +----------------------------------------------------+ Best States ------------- Heat Dissipation 25 Energy Generation 14 Energy Capacity 250 Matter Stores 300 Matter Capacity 300 Sight Range 16 Robot Scan Range 14 Terrain Scan Density 10 Evasion (%) 55 Item Schematics ----------------- None Robot Schematics ------------------ None Fabricated ------------ Nothing Alien Tech Used ----------------- None Achievements -------------- Everything Is Under Control Librarian Challenges ------------ None Game ------ Seed XenonPhasingBrace Manual? 0 Play Time 00:29:16 Cumulative 0.6 hours Start 2024.04.03 @ 22:53:40 End 2024.04.03 @ 23:22:38 Sessions 1 Manual Loads 0 Difficulty Rogue Special Mode None Game No. 2 Rogue 2 Adventurer 0 Explorer 0 Win Type - Total 0 Types 0/0/0/0/0/0/0/0/0 Lore% 1 Gallery% 2 Achievement% 1 Wizard Run 0 Options --------- Layout 1 ASCII 0 Keyboard 0 Movement Mouse Keybinds 0 Fullscreen 1 Font 24/Smallcaps Map View 50x35 Zoom Use 0% Tactical HUD 0 Map Filters NONE Filters NONE Steam 1 RUN: fd440566-a637-4db3-98d0-26609b5c4d39